bitfinex-derivatives/quotes_BTCF0:USTF0_20251219
["timestamp","ask_amount","ask_price","bid_price","bid_amount"]
[1766124237262,0.20362554,87140.0,87126.0,2.24e-06]
[1766124237555,0.19786554,87136.0,87098.0,0.00229628]
[1766124237754,0.19786554,87110.0,87098.0,0.00229628]
[1766124237954,0.00576,87110.0,87098.0,0.00229628]
[1766124238954,0.00576,87110.0,87100.0,0.19786554]
[1766124239153,0.19786554,87130.0,87100.0,0.19786554]
[1766124239348,0.00576,87129.0,87110.0,0.19786554]
[1766124239749,0.19786554,87130.0,87111.0,0.0114869]
[1766124240054,0.0114806,87160.0,87110.0,0.19786554]
[1766124240055,0.00576,87129.0,87110.0,0.19786554]
[1766124240244,0.00011177,87128.0,87111.0,0.00017213]
[1766124240653,0.00084714,87129.0,87111.0,0.00017213]
[1766124240858,0.00128,87129.0,87111.0,0.00017213]
[1766124241246,0.00128,87129.0,87114.0,0.0114865]
[1766124241550,0.00064,87131.0,87119.0,0.19786554]
[1766124241747,0.00064,87132.0,87119.0,0.19786554]
[1766124242148,0.00064,87132.0,87120.0,0.0114858]
[1766124242348,0.00064,87132.0,87119.0,0.19786554]
[1766124242658,0.00064,87132.0,87116.0,0.0114862]
[1766124242854,0.00576,87136.0,87120.0,0.20935124]
[1766124243648,0.00576,87140.0,87122.0,0.0114855]
[1766124244852,0.00576,87140.0,87122.0,0.0114854]
[1766124245158,0.19786554,87132.0,87102.0,0.0114881]
[1766124245354,0.19786554,87120.0,87102.0,0.00576]
[1766124246247,0.19803767,87120.0,87102.0,0.00593213]
[1766124246451,0.19803767,87120.0,87102.0,0.01742033]
[1766124247349,0.00017213,87120.0,87102.0,0.01742033]
[1766124248150,0.00017213,87120.0,87103.0,0.011488]
[1766124248757,0.00017213,87120.0,87106.0,0.0114877]
[1766124248954,2.13e-06,87120.0,87109.0,0.0114872]
[1766124249162,0.0114832,87140.0,87110.0,0.00576]
[1766124249361,0.00364,87139.0,87110.0,0.00576]
[1766124249562,0.20939094,87130.0,87110.0,0.00576]
[1766124249760,0.0114849,87127.0,87109.0,0.0034]
[1766124250461,0.0172446,87129.0,87109.0,0.0034]
[1766124253669,0.00576,87129.0,87110.0,0.0114871]
[1766124253965,0.00576,87129.0,87107.0,0.00296]
[1766124255160,0.0114848,87128.0,87107.0,0.00296]
[1766124256662,0.0114852,87125.0,87107.0,0.00296]
[1766124256866,0.00576,87124.0,87107.0,0.00296]
[1766124258563,0.0114855,87123.0,87107.0,0.00296]
[1766124259171,0.00576,87124.0,87107.0,0.00296]
[1766124259769,0.00576,87124.0,87108.0,0.0114873]
[1766124259970,0.00576,87124.0,87107.0,0.00296]
[1766124262985,0.19790634,87140.0,87107.0,0.00296]
[1766124263293,0.00284,87139.0,87107.0,0.00296]
[1766124263689,0.011484,87134.0,87111.0,0.011487]
[1766124263884,0.00284,87139.0,87107.0,0.00296]
[1766124264079,0.00284,87139.0,87108.0,0.0114873]
[1766124265981,0.0114841,87134.0,87110.0,0.011487]
[1766124266185,0.00576,87133.0,87110.0,0.011487]
[1766124266385,0.00576,87133.0,87112.0,0.0114868]
[1766124266579,0.00576,87133.0,87108.0,0.0114873]
[1766124267395,0.00576,87133.0,87112.0,0.0114868]
[1766124268095,0.00576,87133.0,87114.0,0.0114865]
[1766124268391,0.00576,87133.0,87116.0,0.0114862]
[1766124268598,0.00576,87133.0,87119.0,0.0114859]
[1766124269090,0.00576,87133.0,87121.0,0.0114856]
[1766124269495,0.00444,87136.0,87118.0,0.00568]
[1766124269698,0.00444,87136.0,87118.0,0.00593213]
[1766124270296,0.00444,87136.0,87124.0,0.0114852]
[1766124270898,0.00444,87136.0,87126.0,0.0114849]
[1766124271097,0.00288,87139.0,87126.0,0.0114849]
[1766124271299,0.19786856,87150.0,87127.0,0.00576]
[1766124271494,0.00576,87147.0,87127.0,0.00576]
[1766124272700,0.0114825,87145.0,87127.0,0.00576]
[1766124272894,0.0114825,87145.0,87123.0,0.00576]
[1766124274503,0.0114825,87145.0,87123.0,0.0172453]
[1766124275003,0.0114825,87145.0,87123.0,0.00576]
[1766124275705,0.19786856,87140.0,87119.0,0.0114858]
[1766124276005,0.00576,87139.0,87120.0,0.00576]
[1766124276703,0.0114836,87138.0,87120.0,0.00576]
[1766124276901,0.0114839,87135.0,87120.0,0.00576]
[1766124277109,0.0114835,87138.0,87120.0,0.00576]
[1766124277499,0.0114835,87138.0,87118.0,0.00017213]
[1766124277698,0.00576,87139.0,87118.0,0.00017213]
[1766124277912,0.0114835,87138.0,87118.0,0.00017213]
[1766124278113,0.00576,87139.0,87118.0,0.00017213]
[1766124278114,0.0114838,87135.0,87118.0,0.00017213]
[1766124278606,0.19786856,87130.0,87118.0,2.13e-06]
[1766124278807,0.00576,87129.0,87109.0,0.00576]
[1766124279115,0.19786856,87120.0,87104.0,0.00184]
[1766124279406,0.00576,87119.0,87104.0,0.00184]
[1766124280600,0.00576,87119.0,87103.0,0.00017213]
[1766124281810,0.0114861,87118.0,87103.0,2.13e-06]
[1766124282012,0.011487,87112.0,87103.0,2.13e-06]
[1766124282309,0.00576,87111.0,87103.0,2.13e-06]
[1766124285105,0.00576,87111.0,87093.0,0.00011952]
[1766124285300,0.017247,87111.0,87093.0,0.00011952]
[1766124286206,0.017247,87111.0,87093.0,0.00029165]
[1766124286910,0.00576,87111.0,87093.0,0.00029165]
[1766124287310,0.017247,87111.0,87093.0,0.00029165]
[1766124288312,0.00576,87111.0,87093.0,0.00029165]
[1766124289309,0.19786856,87110.0,87093.0,0.00029165]
[1766124290223,0.19786856,87110.0,87093.0,0.00017213]
[1766124290418,0.19786856,87110.0,87043.0,0.05]
[1766124290419,0.0114893,87094.0,87068.0,0.00576]
[1766124290614,0.19786856,87090.0,87068.0,0.00576]
[1766124291212,0.00011952,87089.0,87068.0,0.00576]
[1766124291408,0.0114902,87087.0,87070.0,0.00017224]
[1766124291609,0.00017224,87088.0,87070.0,0.00017224]
[1766124291610,0.19786856,87080.0,87070.0,0.00017224]
[1766124291816,0.00576,87079.0,87070.0,0.00017224]
[1766124296326,0.00576,87079.0,87057.0,2.41316]
[1766124296630,0.00017224,87088.0,87059.0,0.00576]
[1766124296631,0.00184,87081.0,87059.0,0.00576]
[1766124297329,0.00184,87081.0,87061.0,0.00017224]
[1766124298219,0.00184,87081.0,87066.0,0.0114929]
[1766124298419,0.00184,87081.0,87062.0,0.0114934]
[1766124299931,0.00184,87081.0,87066.0,0.0114929]
[1766124300516,0.00576,87085.0,87070.0,0.19786856]
[1766124301023,0.00017224,87088.0,87070.0,0.19786856]
[1766124301330,0.19786856,87110.0,87084.0,0.0114905]
[1766124301530,0.00576,87109.0,87085.0,0.00576]
[1766124302028,0.0114876,87107.0,87085.0,0.00576]
[1766124302220,0.00017224,87105.0,87087.0,0.00017224]
[1766124302622,0.00576,87104.0,87087.0,0.00017224]
[1766124304428,0.00017224,87105.0,87087.0,0.00017224]
[1766124304634,0.00017224,87105.0,87093.0,0.0114893]
[1766124308028,0.19786856,87120.0,87099.0,0.0114885]
[1766124308224,0.00576,87119.0,87099.0,0.0114885]
[1766124309035,0.00017224,87118.0,87100.0,0.00017224]
[1766124310629,0.00017224,87118.0,87104.0,0.0114878]
[1766124311838,0.19786856,87114.0,87077.0,0.0307739]
[1766124312028,0.19786856,87100.0,87082.0,0.0114908]
[1766124312226,2.4132,87122.0,87087.0,0.0114902]
[1766124312227,0.00576,87103.0,87087.0,0.0114902]
[1766124312538,0.00576,87103.0,87080.0,0.19786856]
[1766124312735,0.00576,87103.0,87078.0,0.00576]
[1766124312736,0.06189628,87129.0,87090.0,0.19786856]
[1766124312939,0.00017224,87118.0,87101.0,0.00017224]
[1766124313338,0.00593224,87118.0,87105.0,0.0114878]
[1766124314431,0.00593224,87118.0,87101.0,0.00017224]
[1766124317540,0.00017224,87118.0,87102.0,0.0114881]
[1766124317739,0.00017224,87118.0,87101.0,0.00017224]
[1766124318440,0.00017224,87118.0,87101.0,0.01166044]
[1766124318638,0.00017224,87118.0,87104.0,0.0114879]
[1766124319431,0.00017224,87118.0,87101.0,0.00017224]
[1766124319627,0.00229522,87138.0,87108.0,0.19786856]
[1766124319832,0.00072,87137.0,87109.0,0.00576]
[1766124320041,0.00072,87137.0,87121.0,0.0114857]
[1766124321339,0.00072,87137.0,87124.0,0.0114853]
[1766124321541,6e-08,87138.0,87120.0,0.1980408]
[1766124321737,0.19786856,87160.0,87136.0,0.0114836]
[1766124321938,0.00576,87159.0,87136.0,0.0114836]
[1766124322638,0.0114808,87158.0,87131.0,0.0114843]
[1766124322838,0.00017187,87153.0,87136.0,0.00017212]
[1766124323545,0.00017187,87153.0,87137.0,0.0006]
[1766124323736,0.00088,87163.0,87145.0,0.0114825]
[1766124324241,0.19786856,87170.0,87145.0,0.0114825]
[1766124324436,0.00576,87169.0,87145.0,0.0114825]
[1766124324833,0.0114785,87176.0,87148.0,0.011482]
[1766124325145,0.0114785,87176.0,87153.0,0.00017212]
[1766124325146,0.00576,87175.0,87153.0,0.00017212]
[1766124325644,0.00576,87175.0,87153.0,0.01165352]
[1766124326741,0.00328741,87184.0,87164.0,0.0114799]
[1766124326938,0.00104,87183.0,87170.0,0.0114791]
[1766124327337,0.00104,87183.0,87166.0,0.0114798]
[1766124327739,0.19760894,87180.0,87166.0,0.0114798]
[1766124328646,0.00104,87183.0,87166.0,0.0114798]
[1766124329451,0.00104,87183.0,87160.0,0.19760894]
[1766124329638,0.00104,87183.0,87171.0,0.0114791]
[1766124329843,0.00104,87183.0,87167.0,0.0114796]
[1766124330150,0.00104,87183.0,87160.0,0.19760894]
[1766124330849,0.19760894,87190.0,87168.0,0.0114794]
[1766124331045,0.00576,87201.0,87180.0,0.19760894]
[1766124331245,0.19944894,87200.0,87182.0,0.00017212]
[1766124331453,0.19944894,87200.0,87182.0,0.00017202]
[1766124332253,0.00184,87200.0,87183.0,0.0114775]
[1766124333545,0.19751626,87220.0,87187.0,0.0114769]
[1766124333848,0.0172329,87219.0,87195.0,0.00017202]
[1766124335650,0.0114733,87215.0,87195.0,0.00017202]
[1766124338350,0.00576,87214.0,87195.0,0.00017202]
[1766124339057,0.0114736,87213.0,87195.0,0.00017202]
[1766124339547,0.00576,87214.0,87195.0,2.02e-06]
[1766124339750,0.0114746,87206.0,87188.0,0.00576]
[1766124339949,0.0172346,87206.0,87188.0,0.00576]
[1766124340753,0.01740627,87206.0,87188.0,0.00593202]
[1766124340955,0.00593167,87206.0,87189.0,0.0114767]
[1766124341545,0.00593167,87206.0,87188.0,0.00593202]
[1766124342554,0.00593167,87206.0,87189.0,0.0114767]
[1766124342855,0.00593167,87206.0,87188.0,0.00593202]
[1766124345045,0.0114747,87205.0,87188.0,0.00593202]
[1766124345653,0.00593167,87206.0,87188.0,0.00593202]
[1766124346353,0.00593167,87206.0,87188.0,0.01740882]
[1766124346754,0.00593167,87206.0,87188.0,0.00593202]
[1766124348251,0.01740617,87206.0,87188.0,0.00593202]
[1766124348455,0.00593167,87206.0,87188.0,0.00017202]
[1766124348752,0.0114751,87202.0,87188.0,0.00017202]
[1766124348947,0.0114751,87202.0,87188.0,0.00593202]
[1766124349255,0.00593167,87206.0,87188.0,0.00593202]
[1766124351161,0.00593167,87206.0,87188.0,0.00017202]
[1766124351345,0.00593167,87206.0,87188.0,0.00593202]
[1766124352158,0.00593167,87206.0,87188.0,0.00017202]
[1766124352350,0.00593167,87206.0,87188.0,0.00185202]
[1766124352551,0.01740617,87206.0,87188.0,0.00185202]
[1766124353864,0.00593167,87206.0,87188.0,0.01332892]
[1766124354458,0.00593167,87206.0,87188.0,0.00185202]
[1766124355361,0.19752767,87200.0,87188.0,0.01332882]
[1766124355851,0.19752767,87200.0,87188.0,0.00185202]
[1766124360550,0.19752767,87200.0,87188.0,0.00017202]
[1766124360771,0.19752767,87200.0,87188.0,0.00593202]
[1766124361357,0.0114753,87201.0,87188.0,0.00593202]
[1766124361568,0.19752767,87200.0,87188.0,0.00593202]
[1766124365156,0.19752767,87200.0,87188.0,2.02e-06]
[1766124365363,0.19752767,87200.0,87187.0,0.00576]
[1766124366064,0.19752767,87200.0,87189.0,0.0114766]
[1766124367764,0.00576,87202.0,87189.0,0.0114766]
[1766124367968,0.19752767,87200.0,87187.0,0.00576]
[1766124368768,0.19752767,87200.0,87187.0,0.0172369]
[1766124369671,0.00017167,87206.0,87189.0,0.0114766]
[1766124369973,0.00576,87203.0,87189.0,0.0114766]
[1766124371569,0.00576,87203.0,87190.0,0.00576]
[1766124371771,0.00576,87203.0,87191.0,0.0114764]
[1766124376270,0.00576,87203.0,87193.0,0.0114761]
[1766124376577,0.00576,87203.0,87190.0,0.0172366]
[1766124376777,0.00017167,87206.0,87190.0,0.0172366]
[1766124377173,7e-08,87206.0,87196.0,0.0114758]
[1766124377380,7e-08,87206.0,87197.0,0.00576]
[1766124377577,7e-08,87206.0,87198.0,0.00576]
[1766124378277,7e-08,87206.0,87202.0,0.011475]
[1766124381179,7e-08,87206.0,87198.0,0.0172355]
[1766124381978,7e-08,87206.0,87201.0,0.0114751]
[1766124385368,7e-08,87206.0,87198.0,0.00576]
[1766124387277,7e-08,87206.0,87203.0,0.0114749]
[1766124387476,7e-08,87206.0,87204.0,0.00576]
[1766124392184,7e-08,87206.0,87205.0,0.0114746]
[1766124394986,7e-08,87206.0,87204.0,0.00576]
[1766124395187,7e-08,87206.0,87204.0,0.0172346]
[1766124398392,7e-08,87206.0,87192.0,0.0114763]
[1766124398683,7e-08,87206.0,87195.0,0.0114759]
[1766124399387,7e-08,87206.0,87198.0,0.0114755]
[1766124399588,7e-08,87206.0,87199.0,0.00576]
[1766124400088,7e-08,87206.0,87200.0,0.0114753]
[1766124400486,0.00576,87223.0,87199.0,0.00576]
[1766124400887,0.00576,87223.0,87200.0,0.19744051]
[1766124401192,0.00576,87223.0,87199.0,0.00576]
[1766124401491,0.00017202,87220.0,87203.0,0.0114748]
[1766124401682,0.00017202,87220.0,87204.0,0.00184]
[1766124405289,0.00017202,87220.0,87205.0,0.0114746]
[1766124405685,0.00017202,87220.0,87208.0,0.0114741]
[1766124406896,0.00017202,87220.0,87204.0,0.0133147]
[1766124407895,0.19761253,87220.0,87204.0,0.00184]
[1766124408901,0.00017202,87220.0,87204.0,0.00184]
[1766124410881,0.19761253,87220.0,87204.0,0.00184]
[1766124411083,0.19761253,87220.0,87203.0,0.00017202]
[1766124411084,0.0114728,87219.0,87203.0,0.00017202]
[1766124411390,0.0114732,87216.0,87203.0,0.00017202]
[1766124412997,0.00576,87218.0,87203.0,0.00017202]
[1766124414194,0.19744051,87213.0,87200.0,0.00204]
[1766124414600,0.017233,87218.0,87200.0,0.00204]
[1766124415199,0.017233,87218.0,87200.0,0.00221202]
[1766124416896,0.00576,87218.0,87200.0,0.00221202]
[1766124418199,0.011473,87217.0,87200.0,0.00221202]
[1766124418793,0.00576,87218.0,87200.0,0.00221202]
[1766124419191,0.00017202,87220.0,87201.0,0.0114751]
[1766124419506,0.00576,87219.0,87201.0,0.0114751]
[1766124420295,0.00017202,87220.0,87204.0,0.0114747]
[1766124421295,0.06130612,87232.0,87218.0,0.0114728]
[1766124421502,0.00576,87247.0,87219.0,0.00576]
[1766124421896,0.06130612,87256.0,87219.0,0.00576]
[1766124422104,0.00184,87255.0,87230.0,0.0114712]
[1766124422400,0.00017202,87251.0,87234.0,0.00017202]
[1766124423410,0.00017202,87251.0,87238.0,0.0114702]
[1766124423705,0.00017202,87251.0,87234.0,0.00017202]
[1766124423706,0.00017202,87251.0,87234.0,0.01164282]
[1766124424301,0.00017202,87251.0,87241.0,0.0114698]
[1766124424499,2.02e-06,87251.0,87241.0,0.0114698]
[1766124424709,2.02e-06,87251.0,87239.0,0.00576]
[1766124425008,2.02e-06,87251.0,87239.0,0.0172301]
[1766124425409,2.02e-06,87251.0,87242.0,0.0114697]
[1766124426509,2.07e-06,87258.0,87245.0,0.0114693]
[1766124426806,2.07e-06,87258.0,87241.0,0.0114698]
[1766124426995,2.07e-06,87258.0,87244.0,0.0114694]
[1766124427404,2.07e-06,87258.0,87240.0,0.0114699]
[1766124427599,2.07e-06,87258.0,87239.0,0.00576]
[1766124428294,2.07e-06,87258.0,87240.0,0.00576]
[1766124428704,2.07e-06,87258.0,87241.0,0.0114698]
[1766124431106,2.07e-06,87258.0,87240.0,0.00576]
[1766124432103,2.07e-06,87258.0,87240.0,0.0172299]
[1766124432405,2.07e-06,87258.0,87241.0,0.00576]
[1766124433097,2.07e-06,87258.0,87236.0,0.0114705]
[1766124433297,2.07e-06,87258.0,87238.0,0.0114702]
[1766124434921,0.0114679,87257.0,87237.0,0.00576]
[1766124435501,0.19744051,87250.0,87234.0,0.00017202]
[1766124435704,0.00576,87249.0,87234.0,0.00017202]
[1766124436817,0.00576,87249.0,87237.0,0.0114704]
[1766124437020,0.00576,87249.0,87235.0,0.0114706]
[1766124438315,2.07e-06,87258.0,87235.0,0.0114706]
[1766124438316,0.00576,87250.0,87235.0,0.0114706]
[1766124439413,0.19744051,87245.0,87222.0,2.40924]
[1766124439617,0.0114693,87246.0,87226.0,0.00576]
[1766124440518,0.00017169,87245.0,87227.0,0.00017192]
[1766124441613,0.00017169,87245.0,87231.0,0.0114712]
[1766124441916,0.00017169,87245.0,87234.0,0.0114708]
[1766124442217,0.00017169,87245.0,87230.0,0.0114712]
[1766124442610,0.00017169,87245.0,87227.0,0.00017192]
[1766124443207,0.19744051,87240.0,87227.0,0.00017192]
[1766124443412,0.20891051,87240.0,87227.0,0.00017192]
[1766124443718,0.0114704,87237.0,87213.0,0.0114735]
[1766124443920,0.19744051,87230.0,87214.0,0.00576]
[1766124444314,0.00576,87236.0,87214.0,0.00576]
[1766124444621,0.00576,87236.0,87216.0,0.00017192]
[1766124444820,0.19744051,87240.0,87216.0,0.00017192]
[1766124445122,0.19744051,87240.0,87221.0,0.0114725]
[1766124445420,0.19744051,87240.0,87220.0,0.00332]
[1766124446006,0.19744051,87240.0,87220.0,0.0147926]
[1766124446416,0.00576,87242.0,87228.0,0.0114715]
[1766124446621,0.00576,87242.0,87228.0,0.00576]
[1766124447415,0.00576,87242.0,87228.0,0.0172315]
[1766124447820,0.00576,87242.0,87231.0,0.0114711]
[1766124448420,0.00017169,87245.0,87229.0,0.0114715]
[1766124449222,0.00017169,87245.0,87228.0,0.00576]
[1766124449223,0.0114695,87244.0,87228.0,0.00576]
[1766124449408,0.19735349,87240.0,87228.0,0.00576]
[1766124449815,0.19735349,87240.0,87229.0,0.00444]
[1766124450123,0.19735349,87240.0,87220.0,0.0114726]
[1766124450319,0.19735349,87240.0,87221.0,0.00576]
[1766124450718,0.19735349,87231.0,87222.0,0.00576]
[1766124450926,0.19735349,87231.0,87220.0,0.00576]
[1766124451222,0.0114714,87230.0,87216.0,0.00017192]
[1766124451422,0.00576,87234.0,87201.0,0.03052325]
[1766124451423,0.19735349,87226.0,87201.0,0.03052325]
[1766124451616,0.19735349,87210.0,87193.0,2.40932]
[1766124451814,0.0114709,87234.0,87186.0,0.011477]
[1766124451815,0.0114738,87211.0,87186.0,0.011477]
[1766124452014,0.19735349,87210.0,87189.0,0.0114767]
[1766124452221,0.19735349,87210.0,87190.0,0.00576]
[1766124452423,0.00017202,87209.0,87191.0,0.00017202]
[1766124457026,0.00017202,87209.0,87192.0,0.0114763]
[1766124458327,0.00017202,87209.0,87191.0,0.00017202]
[1766124458527,0.19735349,87201.0,87191.0,0.00017202]
[1766124458925,0.19735349,87201.0,87188.0,0.00576]
[1766124459230,0.19735349,87198.0,87188.0,0.00092078]
[1766124462328,0.00576,87200.0,87188.0,0.00092078]
[1766124462532,0.20311349,87200.0,87188.0,0.00092078]
[1766124464128,0.20311349,87200.0,87170.0,0.19735349]
[1766124464129,0.0114768,87189.0,87171.0,2.40992]
[1766124464432,0.19735349,87181.0,87172.0,0.00576]
[1766124464631,0.00452,87188.0,87172.0,0.00576]
[1766124465732,0.00593202,87189.0,87172.0,0.00576]
[1766124465931,0.00593202,87189.0,87176.0,0.0114784]
[1766124466633,0.00576,87194.0,87176.0,0.0114784]
[1766124467626,0.00593202,87194.0,87176.0,0.0114784]
[1766124468020,0.19735349,87190.0,87172.0,0.00576]
[1766124468225,0.19735349,87190.0,87173.0,0.00576]
[1766124468226,0.0114767,87189.0,87173.0,0.00576]
[1766124468426,0.19735349,87190.0,87173.0,0.00576]
[1766124469128,0.00576,87189.0,87173.0,0.00576]
[1766124472138,0.00576,87189.0,87167.0,2.40788142]
[1766124472333,0.19735349,87177.0,87137.0,0.0114835]
[1766124472638,0.19735349,87160.0,87138.0,0.00576]
[1766124472939,0.00576,87159.0,87138.0,0.00576]
[1766124473232,0.00017212,87157.0,87140.0,0.00017212]
[1766124473639,0.19735349,87150.0,87140.0,0.00017212]
[1766124473937,0.19735349,87150.0,87140.0,2.12e-06]
[1766124474239,0.19735349,87150.0,87139.0,2.12e-06]
[1766124474833,0.00576,87149.0,87139.0,2.12e-06]
[1766124476736,0.00017212,87157.0,87139.0,2.12e-06]
[1766124476936,0.1148,87210.0,87149.0,0.0114819]
[1766124476937,0.0114788,87174.0,87149.0,0.0114819]
[1766124477134,0.0114788,87174.0,87140.0,0.19776197]
[1766124477135,0.00576,87173.0,87150.0,0.00576]
[1766124477631,0.011479,87172.0,87150.0,0.00576]
[1766124478032,0.19776197,87170.0,87150.0,0.00576]
[1766124478232,0.00017212,87170.0,87152.0,0.00017212]
[1766124479636,0.00244,87169.0,87152.0,0.00017212]
[1766124480034,0.00244,87169.0,87156.0,0.011481]
[1766124481541,0.00017212,87170.0,87156.0,0.011481]
[1766124481741,0.19776197,87190.0,87159.0,0.0114806]
[1766124481940,0.0114772,87186.0,87159.0,0.0114806]
[1766124482845,0.00017212,87181.0,87164.0,0.00017212]
[1766124483047,0.00576,87180.0,87164.0,0.00017212]
[1766124485440,0.00576,87179.0,87164.0,0.00017212]
[1766124491151,0.00576,87179.0,87165.0,0.0114798]
[1766124493145,0.00576,87179.0,87168.0,0.0114795]
[1766124493345,0.00576,87179.0,87171.0,0.011479]
[1766124493552,2.12e-06,87181.0,87167.0,0.00576]
[1766124494565,2.12e-06,87181.0,87167.0,0.0172396]
[1766124495458,0.19761755,87180.0,87167.0,0.0172396]
[1766124496561,0.19761755,87180.0,87170.0,0.0114791]
[1766124496765,0.19761755,87180.0,87167.0,0.0172396]
[1766124497257,2.12e-06,87181.0,87171.0,0.011479]
[1766124499368,2.12e-06,87181.0,87174.0,0.0114786]
[1766124500757,2.12e-06,87181.0,87167.0,0.00576]
[1766124501068,2.12e-06,87181.0,87174.0,0.0114786]
[1766124502073,2.12e-06,87181.0,87171.0,0.0114791]
[1766124503270,2.12e-06,87181.0,87173.0,0.0114787]
[1766124504272,2.12e-06,87181.0,87167.0,0.00576]
[1766124504474,2.12e-06,87181.0,87174.0,0.0114787]
[1766124505573,2.12e-06,87181.0,87167.0,0.00576]
[1766124506173,0.1976169,87180.0,87164.0,0.00017212]
[1766124506376,0.1976169,87180.0,87164.0,0.00164212]
[1766124506570,0.2033769,87180.0,87164.0,2.12e-06]
[1766124508881,0.2033769,87180.0,87165.0,0.0114799]
[1766124509478,0.29566929,87180.0,87165.0,0.0114799]
[1766124509681,0.29566929,87180.0,87164.0,2.12e-06]
[1766124515086,0.29566929,87180.0,87163.0,0.00017212]
[1766124515087,0.29566929,87180.0,87163.0,4.24e-06]
[1766124515384,0.30138809,87173.0,87152.0,0.0114816]
[1766124515586,0.0114792,87171.0,87148.0,0.011482]
[1766124515781,0.0114792,87171.0,87130.0,0.0114845]
[1766124515782,0.00576,87172.0,87149.0,0.00364]
[1766124515977,0.00576,87172.0,87150.0,0.0114819]
[1766124516382,0.00017212,87170.0,87152.0,0.00017212]
[1766124518785,0.00017212,87170.0,87153.0,0.0114814]
[1766124519485,0.19788805,87170.0,87153.0,0.0114814]
[1766124520387,0.19788805,87170.0,87152.0,0.00017212]
[1766124520594,0.00017212,87170.0,87158.0,0.0114807]
[1766124520888,0.00017212,87170.0,87154.0,0.0114812]
[1766124522384,0.00017212,87170.0,87152.0,0.00017212]
[1766124523391,0.19788805,87170.0,87152.0,0.00017212]
[1766124523786,0.00017212,87170.0,87156.0,0.0114811]
[1766124524094,0.00017212,87170.0,87152.0,0.01165362]
[1766124524285,0.00017212,87170.0,87152.0,0.00017212]
[1766124524589,0.00017212,87170.0,87158.0,0.0114808]
[1766124525487,0.00017212,87170.0,87154.0,0.0114812]
[1766124527281,0.00017212,87170.0,87157.0,0.0114808]
[1766124528586,0.00017212,87170.0,87160.0,0.0114805]
[1766124529687,0.00017212,87170.0,87152.0,0.00017212]
[1766124529688,0.00017212,87170.0,87158.0,0.00576]
[1766124530292,0.00017212,87170.0,87152.0,0.00017212]
[1766124530293,0.19788805,87170.0,87152.0,0.00017212]
[1766124530496,0.0114794,87169.0,87153.0,0.00164]
[1766124530794,0.0114794,87169.0,87152.0,0.00017212]
[1766124530795,0.0114794,87169.0,87152.0,0.00593212]
[1766124530991,0.0114817,87152.0,87132.0,0.03057865]
[1766124531185,0.19771593,87142.0,87130.0,0.00576]
[1766124531582,0.19771593,87150.0,87130.0,0.00576]
[1766124531990,0.00017212,87149.0,87131.0,0.00011298]
[1766124534188,0.19771593,87141.0,87131.0,0.00011298]
[1766124534493,0.19771593,87141.0,87127.0,0.00576]
[1766124535891,0.00576,87144.0,87128.0,0.0114847]
[1766124536790,0.00576,87144.0,87127.0,0.00576]
[1766124538388,0.00576,87144.0,87127.0,0.0172449]
[1766124542294,0.00576,87144.0,87131.0,0.0114843]
[1766124542494,0.00576,87144.0,87127.0,0.00576]
[1766124542997,0.00576,87144.0,87132.0,0.0114841]
[1766124543386,0.00017212,87149.0,87132.0,0.0114841]
[1766124543590,0.00305212,87149.0,87132.0,0.0114841]
[1766124544496,0.00017212,87149.0,87131.0,0.0114843]
[1766124544988,0.00017212,87149.0,87127.0,0.0172448]
[1766124545189,0.01165422,87149.0,87127.0,0.0172448]
[1766124545388,0.00017212,87149.0,87127.0,0.0172448]
[1766124546196,0.00017212,87149.0,87131.0,0.0114843]
[1766124546489,0.00017212,87149.0,87127.0,0.00576]
[1766124546689,0.00017212,87149.0,87134.0,0.0114839]
[1766124547095,0.00017212,87149.0,87136.0,0.0114836]
[1766124549094,0.01155673,87168.0,87135.0,0.00576]
[1766124549095,0.0114771,87186.0,87146.0,0.0114823]
[1766124549402,0.0114771,87186.0,87126.0,0.011485]
[1766124549403,0.20919393,87180.0,87152.0,0.0114816]
[1766124549602,0.0114778,87181.0,87155.0,0.0114812]
[1766124549788,0.19771593,87180.0,87156.0,0.00364]
[1766124550203,0.00017212,87177.0,87159.0,0.00017212]
[1766124550393,0.00576,87176.0,87159.0,0.00017212]
[1766124552399,0.19771593,87170.0,87159.0,0.00017212]
[1766124552599,0.00576,87176.0,87159.0,0.00017212]
[1766124553489,0.00576,87176.0,87160.0,0.0114805]
[1766124554508,0.00576,87176.0,87159.0,0.00017212]
[1766124555301,0.00576,87176.0,87159.0,0.01165272]
[1766124555894,0.00576,87176.0,87159.0,0.00017212]
[1766124556293,0.00576,87176.0,87160.0,0.0114805]
[1766124556494,0.00576,87176.0,87159.0,0.00017212]
[1766124558801,0.00576,87176.0,87159.0,0.01165272]
[1766124559202,0.00576,87176.0,87159.0,0.00017212]
[1766124561009,0.00576,87176.0,87159.0,0.01165282]
[1766124561713,0.00576,87176.0,87163.0,0.0114801]
[1766124563015,0.00576,87176.0,87159.0,0.01165272]
[1766124563214,0.0172376,87183.0,87159.0,0.01165272]
[1766124563515,0.20919383,87180.0,87159.0,0.00017212]
[1766124564212,0.00017212,87178.0,87160.0,0.0114805]
[1766124566210,0.00017212,87178.0,87142.0,0.0114829]
[1766124566211,0.19771593,87170.0,87139.0,0.0114833]
[1766124566412,0.0114787,87174.0,87130.0,0.0114845]
[1766124566413,0.19771593,87150.0,87134.0,0.0114839]
[1766124566616,0.19771593,87150.0,87134.0,0.0172439]
[1766124566909,0.00576,87155.0,87134.0,0.0172439]
[1766124566910,0.00576,87155.0,87134.0,0.00576]
[1766124567111,0.0172413,87155.0,87134.0,0.0172439]
[1766124567310,0.00017212,87153.0,87136.0,0.00017212]
[1766124567510,0.00017212,87153.0,87137.0,0.0114835]
[1766124569120,0.00017212,87153.0,87140.0,0.0114832]
[1766124570308,0.00017212,87153.0,87136.0,0.00017212]
[1766124571221,0.00017212,87153.0,87137.0,0.0114835]
[1766124574118,0.19774059,87150.0,87136.0,0.00017212]
[1766124577912,0.19774059,87150.0,87136.0,0.01165572]
[1766124578815,0.19774059,87150.0,87139.0,0.0114833]
[1766124579220,0.00017212,87153.0,87139.0,0.0114833]
[1766124579420,0.00017212,87153.0,87136.0,0.00017212]
[1766124579921,0.00017212,87153.0,87140.0,0.0114831]
[1766124580625,2.12e-06,87153.0,87140.0,0.19774059]
[1766124582116,2.12e-06,87153.0,87136.0,0.00017212]
[1766124582318,2.12e-06,87153.0,87140.0,0.19774059]
[1766124582518,2.12e-06,87153.0,87141.0,0.00576]
[1766124582718,2.12e-06,87153.0,87145.0,0.0114824]
[1766124584727,2.12e-06,87153.0,87141.0,0.00576]
[1766124585021,2.12e-06,87153.0,87142.0,0.00576]
[1766124586925,0.19774059,87152.0,87142.0,0.00576]
[1766124587526,2.12e-06,87153.0,87142.0,0.00576]